[Event "Titled Tuesday Blitz July 4 Early 2023"]
[White "Fromm, Marius"]
[Black "Chor, Kevin"]
[WhiteFideId "12993190"]
[BlackFideId "2090740"]
[WhiteElo "2694"]
[BlackElo "2499"]
[Result "0-1"]
[Round "10"]
[TimeControl "180+2"]
[Date "2023.07.04"]
[WhiteClock "0:00:06"]
[BlackClock "0:00:09"]
[Board "36"]

1. e4 {[%clk 0:03:00]}  c5 {[%clk 0:02:56]} 2. Nf3 {[%clk 0:02:59]}  Nc6 {[%clk 0:02:56]} 3. Bb5 {[%clk 0:02:59]}  Qb6 {[%clk 0:02:57]} 4. Nc3 {[%clk 0:02:57]}  e6 {[%clk 0:02:56]} 5. O-O {[%clk 0:02:57]}  Nf6 {[%clk 0:02:53]} 6. Re1 {[%clk 0:02:54]}  Be7 {[%clk 0:02:52]} 7. e5 {[%clk 0:02:48]}  Nd5 {[%clk 0:02:51]} 8. Bd3 {[%clk 0:02:39]}  Nf4 {[%clk 0:02:41]} 9. Be4 {[%clk 0:02:35]}  O-O {[%clk 0:02:40]} 10. d4 {[%clk 0:02:32]}  cxd4 {[%clk 0:02:29]} 11. Na4 {[%clk 0:02:22]}  Qa5 {[%clk 0:02:24]} 12. Bxf4 {[%clk 0:02:10]}  Qxa4 {[%clk 0:02:24]} 13. Qd3 {[%clk 0:02:03]}  g6 {[%clk 0:02:21]} 14. a3 {[%clk 0:01:46]}  b6 {[%clk 0:02:04]} 15. Nxd4 {[%clk 0:01:31]}  Qxd4 {[%clk 0:01:15]} 16. Qxd4 {[%clk 0:01:29]}  Nxd4 {[%clk 0:01:16]} 17. Bxa8 {[%clk 0:01:29]}  Nxc2 {[%clk 0:01:16]} 18. Be4 {[%clk 0:01:23]}  Nxa1 {[%clk 0:01:14]} 19. Rxa1 {[%clk 0:01:24]}  f5 {[%clk 0:01:06]} 20. exf6 {[%clk 0:01:14]}  Bxf6 {[%clk 0:01:06]} 21. Rb1 {[%clk 0:01:07]}  d5 {[%clk 0:01:00]} 22. Bf3 {[%clk 0:00:58]}  Bb7 {[%clk 0:00:58]} 23. Bh6 {[%clk 0:00:47]}  Rd8 {[%clk 0:00:50]} 24. b4 {[%clk 0:00:46]}  Kf7 {[%clk 0:00:43]} 25. Rc1 {[%clk 0:00:43]}  Rc8 {[%clk 0:00:43]} 26. Rxc8 {[%clk 0:00:41]}  Bxc8 {[%clk 0:00:43]} 27. g3 {[%clk 0:00:40]}  Bd7 {[%clk 0:00:43]} 28. h4 {[%clk 0:00:40]}  Bb2 {[%clk 0:00:43]} 29. Bd2 {[%clk 0:00:34]}  Bxa3 {[%clk 0:00:41]} 30. h5 {[%clk 0:00:33]}  gxh5 {[%clk 0:00:31]} 31. Bxh5+ {[%clk 0:00:34]}  Kf6 {[%clk 0:00:31]} 32. g4 {[%clk 0:00:34]}  e5 {[%clk 0:00:29]} 33. Kg2 {[%clk 0:00:32]}  d4 {[%clk 0:00:25]} 34. g5+ {[%clk 0:00:26]}  Kf5 {[%clk 0:00:23]} 35. Bf7 {[%clk 0:00:26]}  Bc6+ {[%clk 0:00:20]} 36. Kg3 {[%clk 0:00:26]}  Ke4 {[%clk 0:00:18]} 37. Bg8 {[%clk 0:00:08]}  Kd3 {[%clk 0:00:18]} 38. Bxh7+ {[%clk 0:00:06]}  Kxd2 {[%clk 0:00:17]} 39. g6 {[%clk 0:00:07]}  Be4 {[%clk 0:00:13]} 40. f4 {[%clk 0:00:08]}  Bxb4 {[%clk 0:00:12]} 41. fxe5 {[%clk 0:00:07]}  Ke3 {[%clk 0:00:10]} 42. e6 {[%clk 0:00:05]}  d3 {[%clk 0:00:10]} 43. e7 {[%clk 0:00:04]}  Bxe7 {[%clk 0:00:10]} 44. g7 {[%clk 0:00:05]}  Bxh7 {[%clk 0:00:09]} 45. Kg4 {[%clk 0:00:05]}  d2 {[%clk 0:00:09]} 46. Kg3 {[%clk 0:00:04]}  d1=Q {[%clk 0:00:09]} 47. Kh2 {[%clk 0:00:05]}  Bd6+ {[%clk 0:00:08]} 48. Kh3 {[%clk 0:00:05]}  Bf5+ {[%clk 0:00:09]} 49. Kh4 {[%clk 0:00:06]}  Qg4# {[%clk 0:00:09]} 0-1


[Site "https://www.chess.com"]

[Event "Titled Tuesday Blitz July 4 Early 2023"]
[White "Petrosian, Karlen"]
[Black "Begunov, Konstantin"]
[WhiteFideId "4176146"]
[BlackFideId "4118510"]
[WhiteElo "2684"]
[BlackElo "2489"]
[Result "1-0"]
[Round "10"]
[TimeControl "180+2"]
[Date "2023.07.04"]
[WhiteClock "0:00:26"]
[BlackClock "0:00:00"]
[Board "37"]

1. e4 {[%clk 0:03:00]}  c5 {[%clk 0:02:59]} 2. c3 {[%clk 0:02:56]}  Nf6 {[%clk 0:02:59]} 3. e5 {[%clk 0:02:56]}  Nd5 {[%clk 0:02:59]} 4. Nf3 {[%clk 0:02:57]}  Nc6 {[%clk 0:02:59]} 5. d4 {[%clk 0:02:57]}  cxd4 {[%clk 0:02:59]} 6. cxd4 {[%clk 0:02:58]}  d6 {[%clk 0:02:59]} 7. Bc4 {[%clk 0:02:58]}  Nb6 {[%clk 0:02:59]} 8. Bb5 {[%clk 0:02:58]}  d5 {[%clk 0:02:58]} 9. h3 {[%clk 0:02:54]}  Bf5 {[%clk 0:02:58]} 10. Nc3 {[%clk 0:02:52]}  e6 {[%clk 0:02:58]} 11. O-O {[%clk 0:02:51]}  Rc8 {[%clk 0:02:58]} 12. Bg5 {[%clk 0:02:50]}  Be7 {[%clk 0:02:57]} 13. Bxe7 {[%clk 0:02:49]}  Qxe7 {[%clk 0:02:58]} 14. a3 {[%clk 0:02:15]}  a6 {[%clk 0:02:57]} 15. Be2 {[%clk 0:02:04]}  O-O {[%clk 0:02:54]} 16. Qd2 {[%clk 0:02:04]}  Na5 {[%clk 0:02:23]} 17. Nxd5 {[%clk 0:02:03]}  Nxd5 {[%clk 0:02:23]} 18. Qxa5 {[%clk 0:02:03]}  Rc2 {[%clk 0:02:22]} 19. Rfe1 {[%clk 0:01:50]}  Rxb2 {[%clk 0:02:20]} 20. Bc4 {[%clk 0:01:50]}  Nb6 {[%clk 0:02:03]} 21. Bf1 {[%clk 0:01:50]}  Rc8 {[%clk 0:01:47]} 22. Rac1 {[%clk 0:01:48]}  Qd8 {[%clk 0:01:34]} 23. Rc3 {[%clk 0:01:30]}  Rc2 {[%clk 0:01:18]} 24. Rxc8 {[%clk 0:01:27]}  Rxc8 {[%clk 0:01:17]} 25. g4 {[%clk 0:01:20]}  Bg6 {[%clk 0:01:06]} 26. Bg2 {[%clk 0:00:49]}  h6 {[%clk 0:01:05]} 27. Nh4 {[%clk 0:00:44]}  Qxh4 {[%clk 0:00:59]} 28. Qxb6 {[%clk 0:00:43]}  Rc2 {[%clk 0:00:38]} 29. d5 {[%clk 0:00:43]}  exd5 {[%clk 0:00:34]} 30. Bxd5 {[%clk 0:00:36]}  Kh7 {[%clk 0:00:22]} 31. Qe3 {[%clk 0:00:33]}  b5 {[%clk 0:00:17]} 32. Be4 {[%clk 0:00:28]}  Rc7 {[%clk 0:00:08]} 33. Bxg6+ {[%clk 0:00:28]}  fxg6 {[%clk 0:00:09]} 34. e6 {[%clk 0:00:29]}  Re7 {[%clk 0:00:09]} 35. Kg2 {[%clk 0:00:29]}  Qf6 {[%clk 0:00:08]} 36. Qe4 {[%clk 0:00:29]}  a5 {[%clk 0:00:06]} 37. Re3 {[%clk 0:00:29]}  b4 {[%clk 0:00:06]} 38. axb4 {[%clk 0:00:29]}  axb4 {[%clk 0:00:07]} 39. Qc4 {[%clk 0:00:28]}  Qb2 {[%clk 0:00:00]} 40. Kg3 {[%clk 0:00:26]} 1-0


[Site "https://www.chess.com"]

[Event "Titled Tuesday Blitz July 4 Early 2023"]
[White "Koellner, Ruben Gideon"]
[Black "Kukreja Sankalp"]
[WhiteFideId "12993093"]
[BlackFideId "45027676"]
[WhiteElo "2664"]
[BlackElo "2446"]
[Result "1-0"]
[Round "10"]
[TimeControl "180+2"]
[Date "2023.07.04"]
[WhiteClock "0:01:32"]
[BlackClock "0:00:00"]
[Board "38"]

1. d4 {[%clk 0:03:00]}  d5 {[%clk 0:02:54]} 2. Nf3 {[%clk 0:03:01]}  Nf6 {[%clk 0:02:54]} 3. Nbd2 {[%clk 0:03:01]}  Bf5 {[%clk 0:02:54]} 4. e3 {[%clk 0:03:01]}  e6 {[%clk 0:02:54]} 5. Ne5 {[%clk 0:03:02]}  Bd6 {[%clk 0:02:51]} 6. g4 {[%clk 0:03:02]}  Be4 {[%clk 0:02:46]} 7. f3 {[%clk 0:03:02]}  Bg6 {[%clk 0:02:34]} 8. h4 {[%clk 0:03:01]}  h5 {[%clk 0:02:16]} 9. Nxg6 {[%clk 0:03:00]}  fxg6 {[%clk 0:02:17]} 10. g5 {[%clk 0:02:56]}  Bg3+ {[%clk 0:02:11]} 11. Ke2 {[%clk 0:02:53]}  Nfd7 {[%clk 0:02:07]} 12. f4 {[%clk 0:02:50]}  c5 {[%clk 0:01:48]} 13. c3 {[%clk 0:02:42]}  O-O {[%clk 0:01:41]} 14. Nf3 {[%clk 0:02:37]}  Nc6 {[%clk 0:01:17]} 15. Rh3 {[%clk 0:02:33]}  Bxf4 {[%clk 0:01:11]} 16. exf4 {[%clk 0:02:32]}  Qe7 {[%clk 0:01:05]} 17. Kf2 {[%clk 0:02:27]}  Qd6 {[%clk 0:00:59]} 18. Bd3 {[%clk 0:02:20]}  Ne7 {[%clk 0:00:58]} 19. Be3 {[%clk 0:02:09]}  e5 {[%clk 0:00:48]} 20. dxe5 {[%clk 0:02:03]}  Qe6 {[%clk 0:00:38]} 21. Kg2 {[%clk 0:02:00]}  c4 {[%clk 0:00:31]} 22. Bc2 {[%clk 0:01:59]}  Nf5 {[%clk 0:00:32]} 23. Qe2 {[%clk 0:01:52]}  Rae8 {[%clk 0:00:22]} 24. Nd4 {[%clk 0:01:50]}  Nxd4 {[%clk 0:00:21]} 25. cxd4 {[%clk 0:01:46]}  Qb6 {[%clk 0:00:17]} 26. Re1 {[%clk 0:01:33]}  Kh7 {[%clk 0:00:00]} 27. Qxh5+ {[%clk 0:01:32]} 1-0


[Site "https://www.chess.com"]

[Event "Titled Tuesday Blitz July 4 Early 2023"]
[White "Mindhunter08"]
[Black "Tan, Jun Ying"]
[BlackFideId "5710413"]
[WhiteElo "2360"]
[BlackElo "2652"]
[Result "1/2-1/2"]
[Round "10"]
[TimeControl "180+2"]
[Date "2023.07.04"]
[WhiteClock "0:00:13"]
[BlackClock "0:00:08"]
[Board "39"]

1. e4 {[%clk 0:03:00]}  c5 {[%clk 0:03:00]} 2. Nf3 {[%clk 0:02:59]}  Nc6 {[%clk 0:03:01]} 3. Bb5 {[%clk 0:02:59]}  d6 {[%clk 0:03:01]} 4. O-O {[%clk 0:02:58]}  Bd7 {[%clk 0:03:01]} 5. Re1 {[%clk 0:02:58]}  Nf6 {[%clk 0:03:02]} 6. h3 {[%clk 0:02:58]}  e6 {[%clk 0:03:00]} 7. c3 {[%clk 0:02:57]}  Ne5 {[%clk 0:03:01]} 8. Bxd7+ {[%clk 0:02:55]}  Qxd7 {[%clk 0:03:00]} 9. d4 {[%clk 0:02:55]}  Nxf3+ {[%clk 0:03:00]} 10. Qxf3 {[%clk 0:02:56]}  cxd4 {[%clk 0:02:26]} 11. cxd4 {[%clk 0:02:57]}  d5 {[%clk 0:02:27]} 12. e5 {[%clk 0:02:56]}  Ng8 {[%clk 0:02:27]} 13. Bg5 {[%clk 0:02:48]}  Ne7 {[%clk 0:02:27]} 14. Nc3 {[%clk 0:02:45]}  Nc6 {[%clk 0:02:27]} 15. Qd3 {[%clk 0:02:40]}  Be7 {[%clk 0:02:27]} 16. Bxe7 {[%clk 0:02:38]}  Qxe7 {[%clk 0:02:28]} 17. a3 {[%clk 0:02:36]}  a6 {[%clk 0:02:21]} 18. b4 {[%clk 0:02:35]}  O-O {[%clk 0:02:20]} 19. Na4 {[%clk 0:02:33]}  f6 {[%clk 0:01:54]} 20. exf6 {[%clk 0:02:24]}  Qxf6 {[%clk 0:01:55]} 21. Ra2 {[%clk 0:02:13]}  Nxd4 {[%clk 0:01:47]} 22. Nc5 {[%clk 0:02:11]}  Rf7 {[%clk 0:01:39]} 23. Rd2 {[%clk 0:02:07]}  e5 {[%clk 0:01:38]} 24. Qg3 {[%clk 0:01:51]}  e4 {[%clk 0:01:29]} 25. Red1 {[%clk 0:01:47]}  Nf5 {[%clk 0:01:23]} 26. Qf4 {[%clk 0:01:28]}  Ne7 {[%clk 0:01:01]} 27. Qxf6 {[%clk 0:01:24]}  Rxf6 {[%clk 0:01:01]} 28. Nxb7 {[%clk 0:01:22]}  Rc8 {[%clk 0:00:56]} 29. Nc5 {[%clk 0:01:21]}  a5 {[%clk 0:00:50]} 30. Ra2 {[%clk 0:01:07]}  Rb6 {[%clk 0:00:43]} 31. Nb3 {[%clk 0:00:54]}  axb4 {[%clk 0:00:42]} 32. a4 {[%clk 0:00:52]}  Rc3 {[%clk 0:00:38]} 33. Nd4 {[%clk 0:00:52]}  b3 {[%clk 0:00:24]} 34. Rb2 {[%clk 0:00:51]}  Rb4 {[%clk 0:00:21]} 35. a5 {[%clk 0:00:44]}  Rd3 {[%clk 0:00:18]} 36. Rxd3 {[%clk 0:00:36]}  exd3 {[%clk 0:00:19]} 37. Nf3 {[%clk 0:00:17]}  Nc6 {[%clk 0:00:19]} 38. a6 {[%clk 0:00:17]}  Rb6 {[%clk 0:00:19]} 39. Nd2 {[%clk 0:00:15]}  Nd4 {[%clk 0:00:11]} 40. a7 {[%clk 0:00:11]}  Ra6 {[%clk 0:00:11]} 41. Nxb3 {[%clk 0:00:11]}  Ne2+ {[%clk 0:00:09]} 42. Kh2 {[%clk 0:00:08]}  Rxa7 {[%clk 0:00:09]} 43. Nc5 {[%clk 0:00:08]}  Ra3 {[%clk 0:00:05]} 44. Nxd3 {[%clk 0:00:07]}  Rxd3 {[%clk 0:00:04]} 45. Rxe2 {[%clk 0:00:07]}  Kf7 {[%clk 0:00:05]} 46. f3 {[%clk 0:00:07]}  Kf6 {[%clk 0:00:04]} 47. Kg3 {[%clk 0:00:08]}  Ra3 {[%clk 0:00:04]} 48. Kf4 {[%clk 0:00:08]}  Ra4+ {[%clk 0:00:04]} 49. Ke3 {[%clk 0:00:07]}  Ra6 {[%clk 0:00:05]} 50. Rd2 {[%clk 0:00:07]}  Rd6 {[%clk 0:00:05]} 51. Kf4 {[%clk 0:00:07]}  g5+ {[%clk 0:00:04]} 52. Kg4 {[%clk 0:00:07]}  Kg6 {[%clk 0:00:03]} 53. Kg3 {[%clk 0:00:06]}  h5 {[%clk 0:00:03]} 54. Kf2 {[%clk 0:00:06]}  Kf5 {[%clk 0:00:04]} 55. Ke3 {[%clk 0:00:07]}  Ke5 {[%clk 0:00:03]} 56. Kd3 {[%clk 0:00:07]}  d4 {[%clk 0:00:02]} 57. g3 {[%clk 0:00:07]}  Rf6 {[%clk 0:00:02]} 58. Re2+ {[%clk 0:00:07]}  Kd5 {[%clk 0:00:02]} 59. Rf2 {[%clk 0:00:07]}  Re6 {[%clk 0:00:02]} 60. Kd2 {[%clk 0:00:06]}  Kc4 {[%clk 0:00:02]} 61. f4 {[%clk 0:00:04]}  gxf4 {[%clk 0:00:02]} 62. gxf4 {[%clk 0:00:05]}  Ra6 {[%clk 0:00:02]} 63. f5 {[%clk 0:00:05]}  Ra2+ {[%clk 0:00:03]} 64. Ke1 {[%clk 0:00:05]}  Rxf2 {[%clk 0:00:03]} 65. Kxf2 {[%clk 0:00:06]}  Kc3 {[%clk 0:00:04]} 66. f6 {[%clk 0:00:05]}  d3 {[%clk 0:00:04]} 67. f7 {[%clk 0:00:06]}  d2 {[%clk 0:00:05]} 68. f8=Q {[%clk 0:00:07]}  d1=Q {[%clk 0:00:06]} 69. Qc5+ {[%clk 0:00:07]}  Kb3 {[%clk 0:00:05]} 70. Qb5+ {[%clk 0:00:07]}  Kc3 {[%clk 0:00:06]} 71. Qa5+ {[%clk 0:00:07]}  Kc4 {[%clk 0:00:06]} 72. Qc7+ {[%clk 0:00:07]}  Kb5 {[%clk 0:00:06]} 73. Qb7+ {[%clk 0:00:07]}  Kc5 {[%clk 0:00:06]} 74. Qc7+ {[%clk 0:00:07]}  Kb4 {[%clk 0:00:07]} 75. Qb6+ {[%clk 0:00:07]}  Kc4 {[%clk 0:00:06]} 76. Qa6+ {[%clk 0:00:07]}  Kc5 {[%clk 0:00:07]} 77. Qa5+ {[%clk 0:00:08]}  Kc6 {[%clk 0:00:07]} 78. Qa6+ {[%clk 0:00:08]}  Kd7 {[%clk 0:00:07]} 79. Qb7+ {[%clk 0:00:08]}  Ke6 {[%clk 0:00:08]} 80. Qe4+ {[%clk 0:00:08]}  Kf6 {[%clk 0:00:07]} 81. Qf4+ {[%clk 0:00:09]}  Kg6 {[%clk 0:00:07]} 82. h4 {[%clk 0:00:09]}  Qc2+ {[%clk 0:00:07]} 83. Kg3 {[%clk 0:00:10]}  Qd3+ {[%clk 0:00:07]} 84. Kf2 {[%clk 0:00:11]}  Qc2+ {[%clk 0:00:07]} 85. Kf3 {[%clk 0:00:11]}  Qb3+ {[%clk 0:00:08]} 86. Kf2 {[%clk 0:00:12]}  Qa2+ {[%clk 0:00:08]} 87. Kg3 {[%clk 0:00:12]}  Qb3+ {[%clk 0:00:08]} 88. Kf2 {[%clk 0:00:13]}  Qb6+ {[%clk 0:00:09]} 89. Kg3 {[%clk 0:00:13]}  Qb3+ {[%clk 0:00:08]} 90. Kf2 {[%clk 0:00:13]} 1/2-1/2


[Site "https://www.chess.com"]

[Event "Titled Tuesday Blitz July 4 Early 2023"]
[White "Souleidis, Georgios"]
[Black "Zhigalko, Sergei"]
[WhiteFideId "4206827"]
[BlackFideId "13502956"]
[WhiteElo "2643"]
[BlackElo "2879"]
[Result "0-1"]
[Round "10"]
[TimeControl "180+2"]
[Date "2023.07.04"]
[WhiteClock "0:00:00"]
[BlackClock "0:00:05"]
[Board "40"]

1. e4 {[%clk 0:03:00]}  c5 {[%clk 0:02:59]} 2. Nf3 {[%clk 0:03:00]}  Nc6 {[%clk 0:03:00]} 3. Bc4 {[%clk 0:03:01]}  Nf6 {[%clk 0:03:00]} 4. e5 {[%clk 0:03:00]}  d5 {[%clk 0:03:00]} 5. Bb5 {[%clk 0:03:00]}  Nd7 {[%clk 0:02:58]} 6. Bxc6 {[%clk 0:03:00]}  bxc6 {[%clk 0:02:59]} 7. d3 {[%clk 0:02:59]}  g6 {[%clk 0:02:39]} 8. O-O {[%clk 0:02:57]}  Bg7 {[%clk 0:02:39]} 9. Re1 {[%clk 0:02:57]}  Nf8 {[%clk 0:02:40]} 10. h3 {[%clk 0:02:56]}  h6 {[%clk 0:02:33]} 11. c4 {[%clk 0:02:52]}  Ne6 {[%clk 0:02:00]} 12. Nc3 {[%clk 0:02:46]}  O-O {[%clk 0:01:59]} 13. b3 {[%clk 0:02:35]}  f5 {[%clk 0:01:27]} 14. Ba3 {[%clk 0:02:11]}  g5 {[%clk 0:01:06]} 15. Na4 {[%clk 0:02:07]}  g4 {[%clk 0:01:05]} 16. hxg4 {[%clk 0:01:43]}  fxg4 {[%clk 0:01:04]} 17. Nh4 {[%clk 0:01:43]}  Nf4 {[%clk 0:00:56]} 18. Bxc5 {[%clk 0:01:02]}  Qe8 {[%clk 0:00:56]} 19. g3 {[%clk 0:00:46]}  Nh3+ {[%clk 0:00:56]} 20. Kg2 {[%clk 0:00:47]}  Qh5 {[%clk 0:00:48]} 21. e6 {[%clk 0:00:28]}  d4 {[%clk 0:00:23]} 22. Re2 {[%clk 0:00:16]}  Bxe6 {[%clk 0:00:17]} 23. Bxe7 {[%clk 0:00:15]}  Rf7 {[%clk 0:00:10]} 24. Bd6 {[%clk 0:00:14]}  Bd5+ {[%clk 0:00:10]} 25. cxd5 {[%clk 0:00:14]}  Qxd5+ {[%clk 0:00:11]} 26. Kh2 {[%clk 0:00:07]}  Qxd6 {[%clk 0:00:09]} 27. Qd2 {[%clk 0:00:02]}  Raf8 {[%clk 0:00:09]} 28. Rf1 {[%clk 0:00:02]}  Be5 {[%clk 0:00:07]} 29. Nb2 {[%clk 0:00:02]}  Bxg3+ {[%clk 0:00:07]} 30. fxg3 {[%clk 0:00:02]}  Rxf1 {[%clk 0:00:07]} 31. Rg2 {[%clk 0:00:03]}  R1f2 {[%clk 0:00:06]} 32. Qd1 {[%clk 0:00:01]}  Rxg2+ {[%clk 0:00:05]} 33. Kxg2 {[%clk 0:00:00]}  Qd5+ {[%clk 0:00:05]} 0-1


[Site "https://www.chess.com"]

[Event "Titled Tuesday Blitz July 4 Early 2023"]
[White "Materia, Marco"]
[Black "Samunenkov, Ihor"]
[WhiteFideId "45150451"]
[BlackFideId "14187086"]
[WhiteElo "2625"]
[BlackElo "2748"]
[Result "1/2-1/2"]
[Round "10"]
[TimeControl "180+2"]
[Date "2023.07.04"]
[WhiteClock "0:00:53"]
[BlackClock "0:00:05"]
[Board "42"]

1. d4 {[%clk 0:03:00]}  Nf6 {[%clk 0:02:58]} 2. c4 {[%clk 0:03:01]}  e6 {[%clk 0:02:57]} 3. Nf3 {[%clk 0:03:01]}  b6 {[%clk 0:02:57]} 4. a3 {[%clk 0:02:59]}  Bb7 {[%clk 0:02:58]} 5. Nc3 {[%clk 0:02:58]}  Ne4 {[%clk 0:02:57]} 6. Qc2 {[%clk 0:02:57]}  Nxc3 {[%clk 0:02:54]} 7. Qxc3 {[%clk 0:02:58]}  Be7 {[%clk 0:02:53]} 8. Bf4 {[%clk 0:02:58]}  O-O {[%clk 0:02:52]} 9. e3 {[%clk 0:02:58]}  Bd6 {[%clk 0:02:30]} 10. Bg3 {[%clk 0:02:48]}  Nc6 {[%clk 0:02:24]} 11. Bd3 {[%clk 0:02:46]}  a5 {[%clk 0:02:10]} 12. O-O {[%clk 0:02:31]}  Bxg3 {[%clk 0:02:08]} 13. hxg3 {[%clk 0:02:31]}  d6 {[%clk 0:02:08]} 14. d5 {[%clk 0:02:30]}  Nb8 {[%clk 0:01:58]} 15. e4 {[%clk 0:02:26]}  e5 {[%clk 0:01:49]} 16. b4 {[%clk 0:02:25]}  Nd7 {[%clk 0:01:49]} 17. Bc2 {[%clk 0:02:22]}  Qe7 {[%clk 0:01:42]} 18. Rfc1 {[%clk 0:02:09]}  Ra7 {[%clk 0:01:39]} 19. Ne1 {[%clk 0:02:06]}  Rfa8 {[%clk 0:01:26]} 20. Nd3 {[%clk 0:02:06]}  Nf6 {[%clk 0:01:11]} 21. f3 {[%clk 0:02:00]}  Nd7 {[%clk 0:01:09]} 22. c5 {[%clk 0:01:45]}  dxc5 {[%clk 0:00:53]} 23. bxc5 {[%clk 0:01:44]}  Nxc5 {[%clk 0:00:43]} 24. Nxc5 {[%clk 0:01:44]}  bxc5 {[%clk 0:00:43]} 25. Bd3 {[%clk 0:01:33]}  Qg5 {[%clk 0:00:41]} 26. Kf2 {[%clk 0:01:33]}  h5 {[%clk 0:00:37]} 27. Qxc5 {[%clk 0:01:29]}  Ba6 {[%clk 0:00:30]} 28. Bxa6 {[%clk 0:01:27]}  Rxa6 {[%clk 0:00:31]} 29. Qe3 {[%clk 0:01:28]}  Qe7 {[%clk 0:00:27]} 30. Rc3 {[%clk 0:01:24]}  h4 {[%clk 0:00:25]} 31. gxh4 {[%clk 0:01:23]}  Qxh4+ {[%clk 0:00:24]} 32. Kf1 {[%clk 0:01:22]}  Rb6 {[%clk 0:00:12]} 33. Rac1 {[%clk 0:01:20]}  Rab8 {[%clk 0:00:10]} 34. Qf2 {[%clk 0:01:09]}  Qh1+ {[%clk 0:00:06]} 35. Qg1 {[%clk 0:01:09]}  Qh6 {[%clk 0:00:06]} 36. Qe3 {[%clk 0:01:02]}  Qh1+ {[%clk 0:00:04]} 37. Qg1 {[%clk 0:01:01]}  Qh6 {[%clk 0:00:05]} 38. Qe3 {[%clk 0:00:53]}  Qh1+ {[%clk 0:00:05]} 39. Qg1 {[%clk 0:00:53]} 1/2-1/2


[Site "https://www.chess.com"]

[Event "Titled Tuesday Blitz July 4 Early 2023"]
[White "Pasti, Aron"]
[Black "Cherniaiev, Tykhon"]
[WhiteFideId "785857"]
[BlackFideId "14182360"]
[WhiteElo "2578"]
[BlackElo "2695"]
[Result "0-1"]
[Round "10"]
[TimeControl "180+2"]
[Date "2023.07.04"]
[WhiteClock "0:00:00"]
[BlackClock "0:00:03"]
[Board "45"]

1. e4 {[%clk 0:03:00]}  e5 {[%clk 0:02:59]} 2. Nf3 {[%clk 0:02:58]}  Nc6 {[%clk 0:02:57]} 3. Bb5 {[%clk 0:02:59]}  Nge7 {[%clk 0:02:57]} 4. Nc3 {[%clk 0:02:58]}  a6 {[%clk 0:02:56]} 5. Bxc6 {[%clk 0:02:56]}  Nxc6 {[%clk 0:02:56]} 6. Nd5 {[%clk 0:02:55]}  d6 {[%clk 0:02:50]} 7. d4 {[%clk 0:02:53]}  Bg4 {[%clk 0:02:34]} 8. c3 {[%clk 0:02:37]}  Be7 {[%clk 0:02:19]} 9. Ne3 {[%clk 0:02:31]}  Bxf3 {[%clk 0:02:16]} 10. Qxf3 {[%clk 0:02:32]}  exd4 {[%clk 0:02:13]} 11. Nf5 {[%clk 0:02:32]}  Bf6 {[%clk 0:02:14]} 12. O-O {[%clk 0:02:27]}  O-O {[%clk 0:01:53]} 13. Qg3 {[%clk 0:02:17]}  Kh8 {[%clk 0:01:52]} 14. Rd1 {[%clk 0:02:05]}  dxc3 {[%clk 0:01:37]} 15. bxc3 {[%clk 0:02:06]}  Qe8 {[%clk 0:01:37]} 16. Bg5 {[%clk 0:01:50]}  Bxg5 {[%clk 0:01:22]} 17. Qxg5 {[%clk 0:01:50]}  Qe5 {[%clk 0:01:23]} 18. Rac1 {[%clk 0:01:33]}  g6 {[%clk 0:01:09]} 19. Rd5 {[%clk 0:01:17]}  Qe6 {[%clk 0:01:05]} 20. Ng3 {[%clk 0:01:00]}  f6 {[%clk 0:01:01]} 21. Qh6 {[%clk 0:00:56]}  Ne5 {[%clk 0:00:51]} 22. h3 {[%clk 0:00:51]}  c6 {[%clk 0:00:33]} 23. Rd2 {[%clk 0:00:46]}  Rad8 {[%clk 0:00:31]} 24. f4 {[%clk 0:00:43]}  Nc4 {[%clk 0:00:26]} 25. f5 {[%clk 0:00:32]}  Qf7 {[%clk 0:00:21]} 26. Rd4 {[%clk 0:00:27]}  Ne5 {[%clk 0:00:18]} 27. Rcd1 {[%clk 0:00:27]}  d5 {[%clk 0:00:11]} 28. exd5 {[%clk 0:00:27]}  c5 {[%clk 0:00:11]} 29. fxg6 {[%clk 0:00:20]}  Qxg6 {[%clk 0:00:08]} 30. Rh4 {[%clk 0:00:19]}  Qxh6 {[%clk 0:00:06]} 31. Rxh6 {[%clk 0:00:20]}  Rg8 {[%clk 0:00:06]} 32. Ne4 {[%clk 0:00:17]}  f5 {[%clk 0:00:05]} 33. Nf6 {[%clk 0:00:15]}  Rg7 {[%clk 0:00:05]} 34. d6 {[%clk 0:00:13]}  Nf7 {[%clk 0:00:06]} 35. Rh5 {[%clk 0:00:10]}  Rxd6 {[%clk 0:00:06]} 36. Nd5 {[%clk 0:00:03]}  f4 {[%clk 0:00:05]} 37. Rf5 {[%clk 0:00:01]}  h6 {[%clk 0:00:05]} 38. c4 {[%clk 0:00:00]}  Ng5 {[%clk 0:00:03]} 0-1


[Site "https://www.chess.com"]

[Event "Titled Tuesday Blitz July 4 Early 2023"]
[White "Ambartsumova, Karina"]
[Black "Williams, Simon K"]
[WhiteFideId "4166299"]
[BlackFideId "404454"]
[WhiteElo "2570"]
[BlackElo "2687"]
[Result "0-1"]
[Round "10"]
[TimeControl "180+2"]
[Date "2023.07.04"]
[WhiteClock "0:00:18"]
[BlackClock "0:01:40"]
[Board "47"]

1. c4 {[%clk 0:03:00]}  f5 {[%clk 0:02:58]} 2. d4 {[%clk 0:02:57]}  e6 {[%clk 0:02:58]} 3. Nf3 {[%clk 0:02:57]}  Nf6 {[%clk 0:02:58]} 4. g3 {[%clk 0:02:52]}  Be7 {[%clk 0:02:57]} 5. Bg2 {[%clk 0:02:52]}  O-O {[%clk 0:02:56]} 6. O-O {[%clk 0:02:52]}  d6 {[%clk 0:02:56]} 7. Nc3 {[%clk 0:02:51]}  a5 {[%clk 0:02:56]} 8. Qc2 {[%clk 0:02:36]}  Nc6 {[%clk 0:02:55]} 9. a3 {[%clk 0:02:36]}  e5 {[%clk 0:02:55]} 10. d5 {[%clk 0:02:29]}  Nb8 {[%clk 0:02:52]} 11. e4 {[%clk 0:02:25]}  fxe4 {[%clk 0:02:46]} 12. Nxe4 {[%clk 0:02:22]}  Nxe4 {[%clk 0:02:46]} 13. Qxe4 {[%clk 0:02:23]}  Bf5 {[%clk 0:02:46]} 14. Qe2 {[%clk 0:02:13]}  Nd7 {[%clk 0:02:43]} 15. Be3 {[%clk 0:01:51]}  a4 {[%clk 0:02:39]} 16. h3 {[%clk 0:01:48]}  b6 {[%clk 0:02:34]} 17. Nd2 {[%clk 0:01:44]}  Nc5 {[%clk 0:02:31]} 18. Rfd1 {[%clk 0:01:10]}  Qe8 {[%clk 0:02:25]} 19. Kh2 {[%clk 0:01:04]}  Qg6 {[%clk 0:02:24]} 20. Bxc5 {[%clk 0:01:03]}  bxc5 {[%clk 0:02:24]} 21. Be4 {[%clk 0:00:57]}  Rab8 {[%clk 0:02:13]} 22. Bxf5 {[%clk 0:00:54]}  Qxf5 {[%clk 0:02:13]} 23. Ne4 {[%clk 0:00:55]}  h5 {[%clk 0:02:03]} 24. Rd2 {[%clk 0:00:46]}  h4 {[%clk 0:01:59]} 25. Qg4 {[%clk 0:00:39]}  hxg3+ {[%clk 0:01:57]} 26. fxg3 {[%clk 0:00:33]}  Qxg4 {[%clk 0:01:54]} 27. hxg4 {[%clk 0:00:33]}  Rb3 {[%clk 0:01:51]} 28. Nc3 {[%clk 0:00:25]}  Bg5 {[%clk 0:01:45]} 29. Rg2 {[%clk 0:00:20]}  Be3 {[%clk 0:01:42]} 30. Nxa4 {[%clk 0:00:20]}  Rf6 {[%clk 0:01:40]} 31. Nc3 {[%clk 0:00:18]}  Rh6# {[%clk 0:01:40]} 0-1


[Site "https://www.chess.com"]